bitfinex/quotes_ETHUSD_20241119
["timestamp","ask_amount","ask_price","bid_price","bid_amount"]
[1731982647122,3.16656,3158.0,3157.6,0.3171]
[1731982647986,3.16675,3157.9,3157.7,0.3171]
[1731982648386,3.16676,3157.8,3157.7,0.3171]
[1731982648636,3.19665593,3157.8,3157.7,0.3171]
[1731982649448,0.02989593,3157.8,3157.7,0.3171]
[1731982649839,0.02989593,3157.8,3157.7,3.59026]
[1731982650148,3.97202,3158.9,3158.3,0.3171]
[1731982650657,3.16549,3159.1,3158.6,0.3171]
[1731982651158,0.89659945,3159.3,3158.6,0.3171]
[1731982651306,0.89659945,3159.3,3158.8,0.3171]
[1731982652253,0.89659945,3159.3,3158.8,3.48285]
[1731982652412,3.16537,3159.2,3158.8,0.3171]
[1731982652811,0.89659945,3159.3,3158.8,0.3171]
[1731982652979,0.89659945,3159.3,3158.8,3.48285]
[1731982654668,0.89659945,3159.3,3158.8,4.16469074]
[1731982655163,0.89659945,3159.3,3159.0,0.3171]
[1731982656155,0.89659945,3159.3,3158.9,0.3171]
[1731982656873,3.16489,3159.7,3158.9,3.48273]
[1731982657039,3.16506,3159.5,3158.9,0.3171]
[1731982657239,3.16506,3159.5,3158.9,3.48273]
[1731982658084,0.7691,3159.9,3158.9,3.48273]
[1731982658085,3.16471,3159.9,3159.3,3.48228]
[1731982658653,3.16486,3159.7,3159.3,0.3171]
[1731982658977,3.16471,3159.9,3159.3,0.3171]
[1731982658978,3.16469,3159.9,3159.3,0.3171]
[1731982659152,2.75518907,3160.1,3159.3,0.3171]
[1731982659153,3.16476,3159.8,3159.3,0.3171]
[1731982659938,3.22798358,3160.0,3159.3,0.3171]
[1731982660143,3.16446,3160.1,3159.5,0.3171]
[1731982660339,3.16446,3160.1,3159.5,3.48208]
[1731982660568,3.16436,3160.2,3159.7,0.4234]
[1731982661086,3.16417,3160.4,3159.7,3.58821]
[1731982661241,3.16417,3160.4,3159.9,0.3171]
[1731982661434,0.04608789,3160.3,3159.9,0.3171]
[1731982661647,3.16427,3160.3,3159.9,0.3171]
[1731982662295,3.16427,3160.3,3160.0,0.3171]
[1731982663166,3.16427,3160.3,3159.8,0.3171]
[1731982663359,0.06342358,3160.6,3159.8,0.3171]
[1731982663566,3.16434,3160.3,3159.8,0.3171]
[1731982663797,3.16438,3160.2,3159.8,0.3171]
[1731982664122,3.16465,3159.9,3159.8,0.3171]
[1731982664293,3.16457,3160.0,3159.5,0.3171]
[1731982664451,3.16457,3160.0,3159.5,0.675965]
[1731982664849,3.16454,3160.1,3159.5,0.675965]
[1731982665288,3.16427,3160.3,3159.5,3.841005]
[1731982665464,3.16427,3160.3,3159.7,0.3171]
[1731982665666,3.16427,3160.3,3159.9,0.3171]
[1731982665860,3.16355,3161.0,3159.9,0.3171]
[1731982665861,3.16369,3160.9,3160.4,0.3171]
[1731982666060,3.16381,3160.8,3160.4,0.3171]
[1731982666296,3.19567541,3160.8,3160.4,0.3171]
[1731982667183,3.16396,3160.6,3160.4,0.3171]
[1731982667387,0.03189426,3160.5,3160.4,0.3171]
[1731982669598,3.19594426,3160.5,3160.4,0.3171]
[1731982669753,3.19594426,3160.5,3160.1,0.3171]
[1731982670454,3.16431,3160.3,3160.1,0.3171]
[1731982670659,3.19594426,3160.5,3160.1,0.3171]
[1731982670855,0.03190754,3160.2,3160.1,0.3171]
[1731982671103,3.16416,3160.4,3160.1,0.3171]
[1731982671265,0.03190754,3160.2,3160.1,0.3171]
[1731982671468,3.16399,3160.6,3160.1,0.3171]
[1731982671689,3.19624821,3160.2,3160.1,0.3171]
[1731982671889,3.16435,3160.2,3160.1,0.3171]
[1731982672103,0.03189821,3160.2,3160.1,0.3171]
[1731982672406,3.16413,3160.5,3160.1,0.3171]
[1731982672567,0.03189821,3160.2,3160.1,0.3171]
[1731982672762,3.16389,3160.7,3160.1,0.665275]
[1731982672970,0.8159,3160.9,3159.9,3.16465]
[1731982672971,3.16412,3160.5,3160.0,0.3171]
[1731982673209,0.03194274,3160.4,3160.0,0.67160309]
[1731982673709,3.16435,3160.2,3160.0,0.67160309]
[1731982673910,3.19616274,3160.4,3159.7,3.27113]
[1731982673911,3.16432,3160.3,3159.8,0.3171]
[1731982674223,0.03188888,3160.2,3159.8,0.3171]
[1731982674629,3.16422,3160.4,3159.8,0.3171]
[1731982674926,3.0,3161.0,3160.0,3.48159]
[1731982675079,0.03191327,3160.3,3160.0,3.48159]
[1731982675285,6.3274,3160.9,3160.2,3.48142]
[1731982675508,3.16367,3160.9,3160.6,0.3171]
[1731982675726,3.16349,3161.1,3160.6,0.3171]
[1731982676627,3.92679,3161.3,3160.6,3.48098]
[1731982676628,3.92675,3161.3,3160.6,3.48098]
[1731982676784,3.16325,3161.3,3160.8,0.3171]
[1731982677428,3.3063741,3161.5,3161.0,0.3171]
[1731982677634,3.16325,3161.3,3161.0,0.3171]
[1731982678123,6.4695241,3161.5,3161.0,0.3171]
[1731982678281,3.3063741,3161.5,3161.0,0.3171]
[1731982678478,3.16321,3161.4,3161.0,0.3171]
[1731982678680,0.02992319,3161.4,3161.0,0.3171]
[1731982678918,3.16337,3161.2,3161.0,0.3171]
[1731982679316,0.02984823,3161.1,3161.0,0.3171]
[1731982679538,3.19329823,3161.1,3161.0,0.3171]
[1731982679698,3.19329823,3161.1,3161.0,0.4234]
[1731982679699,0.02984823,3161.1,3161.0,0.4234]
[1731982680041,3.3063941,3161.5,3161.0,0.4234]
[1731982680403,3.16332,3161.3,3161.0,0.4234]
[1731982680741,3.3063941,3161.5,3161.0,0.4234]
[1731982680742,0.0298956,3161.2,3161.0,0.4234]
[1731982680908,0.0298956,3161.2,3160.6,3.22718171]
[1731982680909,3.1932556,3161.2,3160.7,0.4234]
[1731982681239,0.02992582,3161.1,3160.9,0.3171]
[1731982681733,3.16326,3161.3,3160.9,0.3171]
[1731982681938,0.02990083,3161.0,3160.9,0.3171]
[1731982682238,0.02790744,3161.0,3160.9,0.3171]
[1731982682396,3.16343,3161.2,3160.9,0.3171]
[1731982682597,0.02992582,3161.1,3160.9,0.3171]
[1731982682821,3.19339582,3161.1,3160.8,0.3171]
[1731982683057,3.16359,3161.0,3160.8,0.3171]
[1731982683339,3.16365,3160.9,3160.8,0.3171]
[1731982683523,3.19352466,3160.9,3160.8,0.3171]
[1731982683721,3.19352466,3160.9,3160.4,0.3171]
[1731982683901,3.19352466,3160.9,3160.4,0.665232]
[1731982684099,3.16379,3160.8,3160.4,0.665232]
[1731982684522,0.02982114,3160.7,3160.4,0.3171]
[1731982684726,0.02982114,3160.7,3160.3,0.3171]
[1731982685045,3.16408,3160.5,3160.3,0.3171]
[1731982685216,3.16415,3160.4,3160.3,0.3171]
[1731982685798,6.32827,3160.5,3160.0,0.3171]
[1731982686035,3.06412,3160.5,3160.0,0.3171]
[1731982686219,6.22827,3160.5,3160.0,0.3171]
[1731982686404,3.16396,3160.6,3160.2,0.3171]
[1731982686609,3.95663,3160.7,3160.2,0.3171]
[1731982686822,3.16408,3160.5,3160.2,0.3171]
[1731982687053,3.95663,3160.7,3160.2,0.3171]
[1731982687223,0.7927,3160.7,3160.2,0.3171]
[1731982687430,3.16416,3160.4,3160.0,0.3171]
[1731982687761,3.16416,3160.4,3160.0,0.68223917]
[1731982687918,3.16431,3160.3,3160.0,0.68223917]
[1731982688121,3.16431,3160.3,3160.0,0.3171]
[1731982688456,3.16445,3160.1,3160.0,0.3171]
[1731982688655,3.16445,3160.1,3159.7,0.3171]
[1731982688966,3.16466,3159.9,3159.7,0.3171]
[1731982689315,3.16475,3159.8,3159.7,0.3171]
[1731982690524,3.16475,3159.8,3159.2,3.16532]
[1731982690525,3.16462,3160.0,3159.8,0.3171]
[1731982690955,3.16465,3159.9,3159.8,0.3171]
[1731982691873,0.7576,3160.1,3159.5,0.3171]
[1731982692167,3.16461,3160.0,3159.5,0.38039442]
[1731982692722,3.16467,3159.9,3159.5,0.06329442]
[1731982693072,3.16423,3160.4,3159.9,0.3171]
[1731982693264,3.16423,3160.4,3160.1,0.3171]
[1731982694078,6.32848,3160.4,3160.1,0.3171]
[1731982694293,6.32848,3160.4,3159.7,0.06328403]
[1731982694294,3.16425,3160.3,3160.2,0.3171]
[1731982694570,3.99129,3160.6,3160.2,0.3171]
[1731982694766,3.16422,3160.4,3160.2,0.3171]
[1731982695139,3.16406,3160.5,3160.2,0.3171]
[1731982695477,3.99129,3160.6,3160.3,0.3171]
[1731982695478,3.16415,3160.4,3160.3,0.3171]
[1731982696484,3.1645,3160.1,3159.7,0.3171]
[1731982696821,3.16469,3159.9,3159.7,0.3171]
[1731982697253,3.1645,3160.1,3159.7,0.3171]
[1731982699376,3.16421,3160.4,3159.7,3.48188]
[1731982699554,3.16428,3160.3,3159.7,3.840725]
[1731982699959,3.16428,3160.3,3159.7,0.675945]
[1731982700131,3.16448,3160.1,3159.7,0.675945]
[1731982703250,3.99129,3160.6,3159.8,3.16467]
[1731982703454,3.16405,3160.5,3159.9,3.48169]
[1731982703658,3.16405,3160.5,3159.9,4.146336]
[1731982704459,3.16405,3160.5,3160.1,0.3171]
[1731982704676,3.99129,3160.6,3160.1,0.3171]
[1731982704846,7.15533,3160.6,3160.1,0.3171]
[1731982705050,3.99129,3160.6,3160.1,0.3171]
[1731982706497,3.16426,3160.3,3160.1,0.3171]
[1731982706778,3.16435,3160.2,3160.1,0.3171]
[1731982707354,3.96925,3160.2,3160.1,0.3171]
[1731982707574,0.8049,3160.2,3160.1,0.3171]
[1731982707780,4.37250636,3160.2,3160.1,0.3171]
[1731982707983,3.16513,3159.5,3159.2,0.3171]
[1731982708141,3.16512,3159.5,3159.2,0.3171]
[1731982708779,3.16511,3159.5,3159.2,0.3171]
[1731982708985,7.12111,3159.7,3159.2,0.3171]
[1731982709183,0.7913,3159.7,3159.2,0.3171]
[1731982709390,3.16497,3159.6,3159.2,0.3171]
[1731982709799,3.16509,3159.5,3159.2,0.3171]
[1731982710799,3.16518,3159.4,3159.2,0.3171]
[1731982712651,3.16495,3159.6,3159.2,0.3171]
[1731982712855,3.16522,3159.4,3159.2,0.3171]
[1731982713455,3.16495,3159.6,3159.2,92.8469]
[1731982715078,3.16519,3159.4,3159.2,92.8469]
[1731982715400,3.16525,3159.3,3159.2,92.8469]
[1731982717098,3.16519,3159.4,3159.2,92.8469]
[1731982717610,3.16525,3159.3,3159.2,92.8469]
[1731982717908,3.16519,3159.4,3159.2,92.8469]
[1731982718125,3.16525,3159.3,3159.2,92.8469]
[1731982718913,3.97375,3159.3,3159.2,92.8469]
[1731982719060,4.52625371,3159.3,3159.2,92.8469]
[1731982719259,4.52625371,3159.3,3159.2,92.5298]
[1731982719260,7.46283013,3159.3,3159.2,92.5298]
[1731982719464,7.46283013,3159.3,3159.2,92.53057]
[1731982720563,3.97375,3159.3,3159.2,92.53057]
[1731982720823,3.16519,3159.4,3159.2,92.53057]
[1731982720962,3.16497,3159.6,3159.2,92.53057]
[1731982721301,3.1651,3159.5,3159.2,92.53057]
[1731982721787,3.16516,3159.4,3159.2,92.53057]
[1731982722813,3.16506,3159.5,3159.2,92.53057]
[1731982723116,3.16506,3159.5,3159.2,92.8459005]
[1731982723775,6.3302,3159.5,3159.2,92.8459005]
[1731982723995,6.3302,3159.5,3159.2,92.53057]
[1731982724165,3.16525,3159.3,3159.2,92.53057]
[1731982724729,3.16506,3159.5,3159.2,92.53057]
[1731982725236,3.16525,3159.3,3159.2,92.53057]
[1731982726422,3.1649,3159.7,3159.2,92.53057]
[1731982726594,0.875,3159.8,3159.4,0.3171]
[1731982726802,0.875,3159.8,3159.4,3.48216]
[1731982727826,0.875,3159.8,3159.4,0.3171]
[1731982728196,0.875,3159.8,3159.4,0.992493]
[1731982729440,0.875,3159.8,3159.7,0.3171]
[1731982730141,4.03975,3159.8,3159.7,0.3171]
[1731982731358,3.16494,3159.7,3159.1,0.38039999]
[1731982731518,3.16494,3159.7,3159.1,0.74561699]
[1731982731855,3.16498,3159.6,3159.1,0.74561699]
[1731982732009,3.16498,3159.6,3159.1,0.682317]
[1731982733055,3.16525,3159.4,3159.1,0.3171]
[1731982733366,3.16518,3159.4,3159.1,0.3171]
[1731982733655,3.16531,3159.3,3159.1,0.3171]
[1731982733841,3.16499,3159.6,3159.1,0.3171]
[1731982734825,6.33004,3159.6,3159.1,0.3171]
[1731982735327,3.1651,3159.5,3159.1,0.3171]
[1731982736161,0.875,3159.8,3159.4,0.4234]
[1731982736344,0.875,3159.8,3159.4,3.58849]
[1731982737476,0.875,3159.8,3159.6,0.3171]
[1731982738370,0.875,3159.8,3159.5,0.3171]
[1731982738371,4.0398,3159.8,3159.5,0.3171]
[1731982738577,0.875,3159.8,3159.7,0.3171]
[1731982739639,0.558,3159.8,3159.7,0.3171]
[1731982739838,3.72282,3159.8,3159.7,0.3171]
[1731982740588,4.49642,3159.8,3159.7,0.3171]
[1731982740785,1.3316,3159.8,3159.0,0.3171]
[1731982741083,3.16512,3159.5,3159.0,0.3171]
[1731982741286,1.3316,3159.8,3159.0,0.3171]
[1731982741485,3.16516,3159.4,3159.0,0.3171]
[1731982741652,3.16516,3159.4,3159.0,0.68234408]
[1731982742156,3.1654,3159.2,3158.8,0.3171]
[1731982743891,0.06342358,3159.1,3158.6,0.3171]
[1731982744094,3.16583,3158.8,3158.6,0.3171]
[1731982744900,0.06342358,3159.0,3158.7,0.3171]
[1731982745056,3.16522,3159.4,3158.7,3.48288]
[1731982745251,3.16522,3159.4,3158.9,0.3171]
[1731982746782,6.33046,3159.4,3158.9,0.3171]
[1731982747065,3.16527,3159.3,3158.9,0.3171]
[1731982747250,3.16535,3159.2,3158.9,0.3171]
[1731982747496,3.16547,3159.1,3158.9,0.3171]
[1731982747700,3.16547,3159.1,3158.5,0.06330669]
[1731982747701,3.16567,3158.9,3158.5,0.4234]
[1731982747855,3.16567,3158.9,3158.7,0.3171]
[1731982748250,6.33099,3159.1,3158.7,0.3171]
[1731982748448,3.16556,3159.0,3158.7,0.3171]
[1731982749266,3.16572,3158.9,3158.6,0.3171]
[1731982750171,3.16561,3159.0,3158.6,0.3171]
[1731982750485,3.16566,3158.9,3158.6,0.3171]
[1731982751330,3.16547,3159.1,3158.6,0.3171]
[1731982751786,3.16565,3158.9,3158.6,0.3171]
[1731982752329,3.16577,3158.8,3158.6,0.3171]
[1731982752625,3.16568,3158.9,3158.4,0.3171]
[1731982753421,6.33142,3158.9,3158.4,0.3171]
[1731982753634,3.1655,3159.1,3158.7,0.3171]
[1731982753936,6.33004,3159.6,3159.1,0.3171]
[1731982754135,3.16506,3159.5,3159.3,0.3171]
[1731982754345,4.4895,3159.8,3159.3,0.3171]
[1731982754543,3.16502,3159.6,3159.5,0.3171]
[1731982756629,3.16513,3159.5,3159.0,0.3171]
[1731982756799,3.16518,3159.4,3159.2,0.3171]
[1731982757145,3.16525,3159.3,3159.2,0.3171]
[1731982757635,3.16525,3159.3,3159.2,0.55386467]
[1731982757847,3.16508,3159.5,3159.2,0.55386467]
[1731982758150,1.3247,3159.8,3159.3,0.3171]
[1731982758307,3.16515,3159.5,3159.3,0.3171]
[1731982758559,3.16515,3159.4,3159.3,0.3171]
[1731982759163,3.16515,3159.4,3159.0,0.3171]
[1731982759545,3.16515,3159.4,3159.2,0.3171]
[1731982760496,3.16515,3159.4,3159.3,0.55392088]
[1731982760660,6.3303,3159.5,3159.3,0.3171]
[1731982761547,3.16515,3159.5,3159.0,0.3171]
[1731982761785,3.16517,3159.4,3159.2,0.3171]
[1731982762787,3.16517,3159.4,3159.3,0.3171]
[1731982763408,3.16496,3159.6,3159.3,0.3171]
[1731982763895,3.16515,3159.4,3159.3,0.3171]
[1731982765011,3.16515,3159.4,3159.0,0.3171]
[1731982765450,3.16508,3159.5,3159.0,0.676008]
[1731982766277,3.16516,3159.4,3159.0,0.676008]
[1731982767575,3.16496,3159.6,3159.0,0.676008]
[1731982767921,3.16496,3159.6,3159.0,0.3171]
[1731982768216,3.16514,3159.5,3159.0,0.3171]
[1731982768413,3.16519,3159.4,3159.0,0.3171]
[1731982772345,3.16496,3159.6,3159.0,0.3171]
[1731982773957,3.16513,3159.5,3159.0,0.3171]
[1731982774517,3.16516,3159.4,3159.0,0.3171]
[1731982774821,3.165,3159.6,3159.0,0.3171]
[1731982775127,3.16521,3159.4,3159.0,0.3171]
[1731982777443,3.16506,3159.5,3159.0,0.3171]
[1731982778063,0.33071962,3160.0,3159.7,0.3171]
[1731982778267,8.63708608,3160.3,3159.7,0.3171]
[1731982778442,8.63708608,3160.3,3159.7,3.48195]
[1731982778443,3.1643,3160.3,3159.7,3.48195]
[1731982778638,3.1643,3160.3,3159.7,0.3171]
[1731982778639,3.16458,3160.0,3159.7,0.3171]
[1731982778940,3.16458,3160.0,3159.5,0.3171]
[1731982778941,3.16467,3159.9,3159.5,0.3171]
[1731982779137,3.16482,3159.8,3159.5,0.3171]
[1731982779866,3.95388,3160.0,3159.5,0.3171]
[1731982780367,3.16437,3160.2,3159.7,0.3171]
[1731982781165,2.96437,3160.2,3159.7,0.3171]
[1731982781407,2.96437,3160.2,3159.8,0.3171]
[1731982782894,3.16419,3160.4,3159.8,0.3171]
[1731982783098,3.16419,3160.4,3159.7,3.16478]
[1731982783099,3.16431,3160.3,3160.0,0.3171]
[1731982784999,3.16437,3160.2,3160.0,0.3171]
[1731982785188,3.16419,3160.4,3160.0,0.3171]
[1731982785927,6.32843,3160.4,3160.0,0.3171]
[1731982786087,3.16419,3160.4,3160.0,0.3171]
[1731982786285,6.62561681,3160.8,3160.0,3.840455]
[1731982786606,3.0,3160.7,3160.0,0.675915]
[1731982786810,3.0,3160.7,3160.0,0.3171]
[1731982786811,3.16413,3160.5,3160.0,0.3171]
[1731982787006,3.16415,3160.4,3160.0,0.3171]
[1731982787208,3.0,3160.6,3160.0,0.3171]
[1731982787411,3.0,3160.6,3160.0,3.48165]
[1731982787609,6.16396,3160.6,3160.2,0.3171]
[1731982788699,6.16396,3160.6,3160.0,3.16455]
[1731982788700,6.16396,3160.6,3160.1,0.3171]
[1731982789597,3.0,3160.6,3160.1,0.3171]
[1731982789849,3.16405,3160.5,3160.1,0.3171]
[1731982790326,3.16441,3160.2,3160.0,0.3171]
[1731982790488,3.22783358,3160.2,3160.0,0.3171]
[1731982790686,3.16441,3160.2,3160.0,0.3171]
[1731982791113,3.16441,3160.2,3159.8,0.3171]
[1731982791630,0.7931,3160.3,3159.8,0.3171]
[1731982791803,3.16423,3160.4,3159.8,3.48185]
[1731982791996,3.16403,3160.6,3160.1,0.4234]
[1731982792223,3.16403,3160.6,3160.1,3.946619]
[1731982793335,3.16376,3160.8,3160.1,3.946619]
[1731982793509,3.16376,3160.8,3160.3,0.3171]
[1731982794134,3.16357,3161.0,3160.5,0.3171]
[1731982794319,3.16357,3161.0,3160.5,0.68218218]
[1731982794506,6.32722,3161.0,3160.5,0.3171]
[1731982794711,6.32685,3161.2,3160.5,3.54433864]
[1731982794907,3.1634,3161.2,3160.5,3.48106]
[1731982795235,3.1634,3161.2,3160.5,4.15621]
[1731982795460,3.16347,3161.1,3160.7,0.3171]
[1731982796440,3.16329,3161.3,3160.9,0.3171]
[1731982796592,3.16318,3161.4,3160.9,0.3171]
[1731982797408,3.16318,3161.4,3160.9,0.68213401]
[1731982797919,0.1432941,3161.5,3160.9,0.68213401]
[1731982798132,3.16325,3161.3,3160.9,0.68213401]
[1731982799334,6.4694841,3161.5,3160.9,0.68213401]
[1731982799632,3.3063541,3161.5,3160.9,0.74540408]
[1731982799871,3.3063541,3161.5,3161.1,0.3171]
[1731982800230,0.1432941,3161.5,3161.3,0.3171]
[1731982800855,0.1432941,3161.5,3161.3,3.48035]
[1731982801266,0.1432941,3161.5,3161.3,0.3171]
[1731982801423,0.1432941,3161.5,3161.3,0.675781]
[1731982801623,0.1432941,3161.5,3161.3,3.48034]
[1731982802070,0.1432941,3161.5,3161.3,0.3171]
[1731982803734,0.1432941,3161.5,3161.2,3.26957]
[1731982803735,0.1432941,3161.5,3161.4,3.48025]
[1731982803978,0.1432941,3161.5,3161.4,4.261532]
[1731982805671,0.1432941,3161.5,3161.4,1.098382]
[1731982806531,0.1432941,3161.5,3161.4,4.261532]
[1731982806725,0.1432941,3161.5,3161.4,1.098382]
[1731982806931,0.1432941,3161.5,3161.4,0.4234]
[1731982807684,0.1432941,3161.5,3161.4,3.58655]
[1731982808186,0.1432941,3161.5,3161.4,0.4234]
[1731982808387,3.3063441,3161.5,3161.4,0.3171]
[1731982808694,0.1432941,3161.5,3161.4,0.3171]
[1731982809048,3.3063441,3161.5,3161.4,0.3171]
[1731982809470,0.1432941,3161.5,3161.0,3.48059]
[1731982809747,3.3064141,3161.5,3161.2,0.3171]
[1731982810062,3.16325,3161.3,3161.2,0.3171]
[1731982810454,5.13817923,3161.3,3161.2,0.3171]
[1731982810684,5.13817923,3161.3,3160.7,0.3171]
[1731982810685,3.16361,3161.0,3160.7,0.3171]
[1731982812092,3.16375,3160.8,3160.7,0.3171]
[1731982812256,3.95825,3160.8,3160.7,0.3171]
[1731982813286,6.95825,3160.8,3160.7,0.3171]
[1731982814076,0.7945,3160.8,3160.7,0.3171]
[1731982814282,7.02167358,3160.8,3160.7,0.3171]
[1731982814476,7.51825,3160.8,3160.7,0.3171]
[1731982814683,3.16482,3159.8,3159.2,0.3171]
[1731982815005,3.16487,3159.7,3159.2,0.3171]
[1731982815954,3.16507,3159.5,3159.2,0.3171]
[1731982816158,3.16525,3159.3,3159.2,0.3171]
[1731982816499,3.16509,3159.5,3159.2,0.3171]
[1731982816650,3.16517,3159.4,3159.2,0.3171]
[1731982817287,3.16517,3159.4,3158.9,0.3171]
[1731982817491,3.16517,3159.4,3158.8,0.4234]
[1731982817492,3.16517,3159.4,3159.1,0.3171]
[1731982817699,3.16496,3159.6,3159.1,0.3171]
[1731982818056,3.16517,3159.4,3159.1,0.3171]
[1731982818356,3.16517,3159.4,3158.8,0.4234]
[1731982818357,3.16517,3159.4,3158.9,0.3171]
[1731982818558,3.16517,3159.4,3158.9,0.707735]
[1731982818806,3.16521,3159.4,3158.9,0.707735]
[1731982819207,3.16499,3159.6,3158.9,3.873385]
[1731982819402,0.7945,3159.9,3159.2,0.3171]
[1731982819403,3.16483,3159.8,3159.2,0.3171]
[1731982819638,3.16483,3159.8,3159.2,3.48244]
[1731982819849,3.16483,3159.8,3159.3,0.4234]
[1731982819999,3.16486,3159.7,3159.3,0.4234]
[1731982820401,3.16496,3159.6,3159.3,0.4234]
[1731982821041,3.16506,3159.5,3159.3,0.4234]
[1731982821314,3.16496,3159.6,3159.3,0.4234]
[1731982821746,3.16477,3159.8,3159.3,0.4234]
[1731982821960,3.16488,3159.7,3159.3,0.4234]
[1731982823511,3.95918,3159.9,3159.3,0.4234]
[1731982823711,3.16476,3159.8,3159.3,0.4234]
[1731982824054,4.355098,3159.9,3159.3,0.4234]
[1731982824262,0.7945,3159.9,3159.4,3.16511]
[1731982824440,3.16427,3160.3,3159.8,0.4234]
[1731982824647,3.16402,3160.6,3159.8,3.65135264]
[1731982824953,3.480422,3160.6,3159.9,3.16464]
[1731982825158,3.16406,3160.5,3159.8,3.58806]
[1731982825561,3.16422,3160.4,3159.8,3.58806]
[1731982826192,3.16434,3160.3,3159.8,0.4234]
[1731982826463,3.16434,3160.3,3159.5,0.4234]
[1731982826464,3.16457,3160.0,3159.5,0.4234]
[1731982826818,3.16475,3159.8,3159.3,0.7398]
[1731982827158,4.05640358,3159.7,3159.1,3.58884]
[1731982827364,0.8281,3159.7,3159.1,4.3033385]
[1731982827679,0.8281,3159.7,3159.3,3.16525]
[1731982827815,0.8281,3159.7,3159.2,3.16534]
[1731982828452,0.8281,3160.1,3159.3,0.37969995]
[1731982828685,0.8281,3160.1,3159.4,3.16509]
[1731982828876,5.44623859,3161.7,3161.1,2.91745]
[1731982829164,0.01,3162.3,3161.1,2.91745]
[1731982829165,3.99057,3162.1,3161.1,3.16345]
[1731982829377,3.99057,3162.1,3161.3,3.16318]
[1731982829517,3.99057,3162.1,3161.1,1.83489358]
[1731982829518,0.8281,3161.4,3161.1,1.83489358]
[1731982829720,0.8281,3161.4,3160.1,0.0732581]
[1731982829721,3.5320307,3161.4,3160.1,0.0732581]
[1731982830033,3.5320307,3161.4,3160.2,0.2352616]
[1731982830034,3.56012745,3160.8,3160.2,0.2352616]
[1731982830228,3.56012745,3160.8,3159.5,3.16503]
[1731982830229,3.16418,3160.4,3159.5,3.16503]
[1731982830477,3.16477,3159.8,3159.3,0.06328959]
[1731982830630,4.00109358,3159.7,3158.9,3.16558]
[1731982830834,4.00109358,3159.7,3158.7,3.16585]
[1731982830835,0.83622358,3159.7,3158.7,3.16585]
[1731982831157,0.7728,3158.7,3157.8,3.16676]
[1731982831363,0.7728,3158.7,3158.1,3.16646]
[1731982831572,2.74172745,3158.2,3156.3,0.02]
[1731982831856,0.84622358,3158.7,3156.8,3.16776]
[1731982831857,2.74172745,3157.7,3156.8,3.16776]
[1731982832063,2.74172745,3157.7,3155.9,0.3164]
[1731982832064,0.7857,3156.8,3156.2,3.16831]
[1731982832263,0.84912358,3156.8,3156.0,3.16854]
[1731982832425,0.84912358,3156.8,3155.6,0.06335602]
[1731982832426,0.06422441,3156.7,3155.9,3.16863]
[1731982832774,2.80515103,3156.6,3156.0,3.16849]
[1731982833128,0.06410594,3156.5,3156.0,3.16849]
[1731982833361,0.06410594,3156.5,3156.0,0.316849]
[1731982833523,0.06410594,3156.5,3155.6,3.16896]
[1731982833524,0.06410594,3156.5,3156.4,3.16816]
[1731982833745,3.95438,3157.3,3156.5,3.16803]
[1731982833946,0.0641756,3157.2,3156.5,3.16803]
[1731982834149,0.0641756,3157.2,3156.7,3.16785]
[1731982834384,0.0641756,3157.2,3156.4,0.06335001]
[1731982834586,0.0641756,3157.2,3156.9,3.16764]
[1731982834889,2.80515103,3157.8,3156.7,3.16785]
[1731982835062,0.06414938,3157.1,3156.9,3.16764]
[1731982835239,2.80515103,3157.8,3157.1,3.16746]
[1731982835443,3.10095255,3157.8,3157.1,3.16746]
[1731982835795,3.10095255,3157.8,3156.9,3.16764]
[1731982835796,0.06428308,3157.7,3157.2,3.16733]
[1731982836451,0.7871,3157.9,3157.2,3.16733]
[1731982836650,0.0642782,3157.6,3157.2,3.16733]
[1731982836850,0.7871,3157.9,3157.2,3.16733]
[1731982837099,0.06426008,3157.5,3157.2,3.16733]
[1731982837391,0.06423792,3157.4,3157.3,3.16725]
[1731982837597,0.7871,3157.9,3157.3,3.16725]
[1731982837750,0.06423792,3157.4,3157.3,3.16725]
[1731982837949,0.7871,3157.9,3157.3,3.16725]
[1731982838147,0.06434051,3157.8,3157.3,3.16725]
[1731982838893,0.06434051,3157.8,3157.5,3.16702]
[1731982839279,0.06434051,3157.8,3157.4,0.06334064]
[1731982839490,3.56782745,3158.4,3157.8,3.16673]
[1731982839491,0.8261,3158.4,3157.8,3.16673]
[1731982839650,0.8261,3158.4,3158.0,3.16653]
[1731982839844,0.8261,3158.4,3157.8,3.16673]
[1731982840268,0.8261,3158.4,3157.4,3.16715]
[1731982840478,2.74172745,3158.1,3157.0,3.54868]
[1731982840645,2.74172745,3158.1,3157.5,3.16698]
[1731982840863,3.63125103,3158.4,3157.5,3.16698]
[1731982841075,3.56782745,3158.4,3157.7,3.16677]
[1731982841279,0.8261,3158.4,3157.1,3.2307176]
[1731982841484,0.8261,3158.4,3157.8,3.16674]
[1731982841796,0.06342358,3158.3,3157.8,3.16674]
[1731982842356,0.06342358,3158.3,3157.5,3.167]
[1731982842668,0.40556636,3158.3,3157.5,3.167]
[1731982843246,0.06342358,3158.2,3157.6,3.16695]
[1731982843707,0.06230148,3158.1,3157.6,3.16695]
[1731982845875,3.17378907,3158.1,3157.2,3.16733]
[1731982846066,3.16673,3157.9,3157.2,3.16733]
[1731982846254,0.06342358,3157.8,3157.2,3.16733]
[1731982846456,0.1256575,3157.8,3157.2,3.16733]
[1731982846881,0.06223392,3157.8,3157.3,3.16725]
[1731982847090,3.0,3158.0,3157.3,3.16725]
[1731982847591,0.06225045,3157.9,3157.3,3.16725]
[1731982849163,3.22897045,3157.9,3157.1,3.16744]